[Event "44th Chess Olympiad Open 2022"]
[Site "Chennai"]
[Date "2022.08.05"]
[Round "7.9"]
[White "Mastrovasilis, Dimitrios"]
[Black "Korobov, Anton"]
[Result "1/2-1/2"]
[ECO "B84"]
[WhiteElo "2599"]
[BlackElo "2692"]
[Annotator "TA"]
[PlyCount "119"]
[EventDate "2022.07.29"]
[EventType "team-tourn"]
[EventCountry "IND"]
[SourceTitle "playchess.com"]
[Source "ChessBase"]
[SourceQuality "1"]
[WhiteTeam "Greece"]
[BlackTeam "Ukraine"]
[WhiteTeamCountry "GRE"]
[BlackTeamCountry "UKR"]
[TimeControl "40/5400+30:1800+30"]

{[%evp 14,119,22,20,19,37,23,19,52,27,30,34,52,54,56,46,48,37,48,35,44,49,58,39,76,89,78,0,0,0,0,0,0,0,60,69,91,88,172,185,162,182,172,194,182,138,193,191,272,172,208,216,477,490,421,414,1010,1009,921,595,533,481,948,1240,1204,1054,749,909,812,0,0,0,0,0,0,0,0,0,0,0,0,0,8,0,0,0,0,0,0,0,0,0,0,0,0,0,0,0,0,0,0,0,0,0,0,0,0,0]} 1. e4 {[%emt 0:00:04]} c5 {[%emt 0:00:04]} 2. Nf3 {[%emt 0:00:09]} d6 {[%emt 0:00:08]} 3. d4 {[%emt 0:00:07]} cxd4 {[%emt 0:00:05]} 4. Nxd4 {[%emt 0:00:07]} Nf6 {[%emt 0:00:07]} 5. Nc3 {[%emt 0:00:12]} a6 {[%emt 0:00:04]} 6. Be3 {[%emt 0:00:11]} Nbd7 {[%emt 0:00:10]} 7. Be2 {[%emt 0:01:22]} e6 {[%emt 0:00:38]} 8. g4 {[%emt 0:00:57]} h6 $1 {[%emt 0:00:22] B84: Sicilian Scheveningen: 6 Be2 a6, lines without early Be3.} 9. f4 {[%emt 0:00:45]} g5 {[%emt 0:01:10]} 10. f5 {[%emt 0:00:27] Strongly threatening h4.} (10. fxg5 {is interesting.} hxg5 11. Bxg5 b5 12. Bf3) 10... Ne5 {[%emt 0:05:31]} 11. fxe6 {[%emt 0:01:49]} fxe6 {[%emt 0:00:51]} 12. Nf3 {[%emt 0:00:49] [#]} Bd7 $146 {[%emt 0:12:54]} ({Predecessor:} 12... Nfd7 13. Nxe5 Nxe5 14. Qd4 Bd7 15. O-O-O Be7 16. Kb1 Qa5 17. a3 O-O-O 18. Rhf1 Qc5 {1-0 (114) Salgado Lopez,I (2626)-Huschenbeth,N (2521) Chennai 2011}) 13. Nxe5 {[%emt 0:26:45]} dxe5 {[%emt 0:00:12]} 14. Qd3 {[%emt 0:01:54]} Qc7 {[%emt 0:07:32]} 15. h4 {[%emt 0:06:28]} Rg8 {[%emt 0:00:39]} 16. hxg5 {[%emt 0:01:14]} hxg5 {[%emt 0:00:02]} 17. O-O-O {[%emt 0:09:46]} O-O-O {[%emt 0:02:09]} 18. a3 {[%emt 0:10:18]} Bc5 {[%emt 0:20:46]} 19. Bxc5 {[%emt 0:06:28]} Qxc5 {[%emt 0:00:03]} 20. Qd6 {[%emt 0:01:18]} (20. Qg3 $16) 20... Qxd6 $11 {[%emt 0:10:23]} 21. Rxd6 {[%emt 0:00:03]} Rdf8 {[%emt 0:02:13]} 22. Rd3 {[%emt 0:07:14]} Bc6 {[%emt 0:01:56]} 23. Rh6 {[%emt 0:02:15]} Kc7 {[%emt 0:04:50]} ({Don't do} 23... Nxe4 24. Nxe4 Bxe4 25. Re3 $16) (23... Rh8 $11 24. Rdh3 Rxh6 25. Rxh6 Kd7) 24. Rf3 $1 $14 {[%emt 0:03:36]} Nd7 {[%emt 0:11:21]} 25. Rxe6 {[%emt 0:00:42] White is more active.} Rf4 {[%emt 0:00:49]} (25... Rxf3 $16 26. Bxf3 Rf8) 26. Nd5+ $1 $18 {[%emt 0:03:15]} Bxd5 {[%emt 0:00:05]} 27. exd5 {[%emt 0:00:06]} Rh8 {[%emt 0:02:26]} 28. d6+ {[%emt 0:03:50]} Kd8 {[%emt 0:02:01]} 29. b4 {[%emt 0:03:15]} Rh1+ {[%emt 0:03:14]} 30. Kb2 {[%emt 0:00:46] Threatens to win with Rc3.} Nb6 {[%emt 0:01:28]} (30... Re1 $142) 31. Rxf4 {[%emt 0:02:26]} exf4 {[%emt 0:00:08][%mdl 4096] Endgame [#] KRB-KRN} 32. Bd3 $1 {[%emt 0:04:37]} Nd5 $2 {[%emt 0:03:35]} (32... Na4+ {was called for.} 33. Kb3 b5) 33. Be4 {[%emt 0:01:48][%csl LRd5,LRh1]} Rd1 {[%emt 0:00:02] [#]} 34. c4 {[%emt 0:01:35][%cal Bc2c4,Bc4c5][%mdl 32]} Nb6 {[%emt 0:02:27]} (34... Ne3 $142 35. c5 (35. Bxb7 Nxc4+ 36. Kc2 Rxd6 $16) 35... Re1) 35. c5 {[%emt 0:00:19]} Re1 {[%emt 0:00:44]} 36. Bf5 {[%emt 0:01:00]} ({Less strong is} 36. cxb6 Kd7 $16) 36... Nc4+ {[%emt 0:00:52]} 37. Kc3 {[%emt 0:00:22]} Rxe6 {[%emt 0:02:40]} (37... Ne3 $142 38. Rf6 Nd5+ 39. Kd2 Nxf6 40. Kxe1 Nd7) 38. Bxe6 {[%emt 0:00:03]} Nxa3 {[%emt 0:00:05] KB-KN} 39. Bd5 {[%emt 0:00:35]} Kc8 {[%emt 0:01:10]} 40. Kd3 {[%emt 0:01:00]} Nb5 {[%emt 0:00:18]} 41. d7+ $2 {[%emt 0:20:38]} (41. Bh1 $18 Na7 42. Ke4) 41... Kxd7 $11 {[%emt 0:00:26] The position is equal.} 42. Bxb7 {[%emt 0:00:02]} Nc7 {[%emt 0:00:54]} 43. Ke4 {[%emt 0:03:03]} Ke6 {[%emt 0:04:06]} 44. Bc8+ {[%emt 0:00:35]} Kf6 {[%emt 0:01:19]} 45. Bb7 {[%emt 0:00:42]} Ke6 {[%emt 0:00:46]} 46. Bc6 {[%emt 0:00:13]} Kf6 $1 {[%emt 0:01:14]} 47. Ba4 {[%emt 0:01:55]} f3 {[%emt 0:05:21]} 48. Bd1 {[%emt 0:05:25]} f2 {[%emt 0:01:30]} 49. Be2 {[%emt 0:00:02]} Ke6 {[%emt 0:01:12]} 50. Bc4+ {[%emt 0:00:29]} Kf6 {[%emt 0:00:05]} 51. Bf1 {[%emt 0:00:56]} Ke6 {[%emt 0:00:58]} 52. Kd4 {[%emt 0:00:50]} Nd5 {[%emt 0:01:50]} 53. Bc4 {[%emt 0:01:41]} f1=Q {[%emt 0:00:23]} 54. Bxf1 {[%emt 0:00:05] Threatening mate with Bc4.} Nxb4 {[%emt 0:00:04]} 55. Bc4+ {[%emt 0:00:36]} Kd7 {[%emt 0:02:34]} 56. Ke5 {[%emt 0:00:44]} Kc6 {[%emt 0:00:19]} 57. Kf5 {[%emt 0:00:25]} Kxc5 {[%emt 0:00:05]} 58. Bb3 {[%emt 0:00:34]} Nd3 {[%emt 0:00:33]} 59. Kxg5 {[%emt 0:00:07]} Nf2 {[%emt 0:00:06]} 60. Kf5 {[%emt 0:00:48] Blacks defense is rewarded with a draw.  Weighted Error Value: White=0.19 (very precise) /Black=0.18 (very precise)} 1/2-1/2

[Event "44th Chess Olympiad Open 2022"]
[Site "Chennai"]
[Date "2022.08.05"]
[Round "7.9"]
[White "Banikas, Hristos"]
[Black "Kuzubov, Yuriy"]
[Result "1/2-1/2"]
[ECO "D30"]
[WhiteElo "2598"]
[BlackElo "2642"]
[Annotator "TA"]
[PlyCount "79"]
[EventDate "2022.07.29"]
[EventType "team-tourn"]
[EventCountry "IND"]
[SourceTitle "playchess.com"]
[Source "ChessBase"]
[SourceQuality "1"]
[WhiteTeam "Greece"]
[BlackTeam "Ukraine"]
[WhiteTeamCountry "GRE"]
[BlackTeamCountry "UKR"]
[TimeControl "40/5400+30:1800+30"]

{[%evp 9,79,26,27,13,25,18,34,24,18,31,32,35,44,43,50,20,26,20,36,47,37,47,45,28,40,37,57,62,56,57,45,58,68,61,67,54,69,35,31,14,16,6,6,4,6,6,6,4,4,5,9,6,62,62,62,62,62,62,82,62,62,45,45,0,62,0,46,0,67,0,48,0]} 1. d4 {[%emt 0:00:03]} d5 {[%emt 0:00:05]} 2. c4 {[%emt 0:00:15]} e6 {[%emt 0:00:05]} 3. Nf3 {[%emt 0:00:35]} a6 {[%emt 0:01:09]} 4. Bg5 {[%emt 0:00:27]} Be7 {[%emt 0:00:09]} 5. Bxe7 {[%emt 0:00:14]} Qxe7 {[%emt 0:00:06]} 6. Nbd2 {[%emt 0:00:39] D30: Queen's Gambit Declined: Systems without Nc3.} Nf6 {[%emt 0:00:18]} 7. g3 {[%emt 0:01:01]} O-O {[%emt 0:14:37]} 8. Bg2 {[%emt 0:01:04]} c5 {[%emt 0:17:57]} 9. cxd5 {[%emt 0:03:50] [#]} Nxd5 $146 {[%emt 0:02:15]} ({Predecessor:} 9... exd5 10. dxc5 Qxc5 11. O-O Nc6 12. Nb3 Qb6 13. Qc1 Re8 14. e3 Ne4 15. Rd1 Bg4 {0-1 (22) Yuffa,D (2582)-Heberla,B (2534) Warsaw 2019}) 10. dxc5 {[%emt 0:05:03]} Qxc5 {[%emt 0:00:22]} 11. Rc1 {[%emt 0:04:44]} Qe7 {[%emt 0:03:15]} 12. Ne5 {[%emt 0:05:05][%cal Bf3e5,Be5d3,Bd3f4][%mdl 32]} Nd7 {[%emt 0:06:59]} 13. Nd3 {[%emt 0:03:05]} N5f6 {[%emt 0:11:36]} 14. O-O {[%emt 0:02:48]} e5 {[%emt 0:01:28][%cal Be6e5,Be5e4][%mdl 32]} 15. Qb3 {[%emt 0:00:11]} e4 {[%emt 0:09:47]} 16. Nf4 {[%emt 0:01:36]} Re8 {[%emt 0:01:05]} 17. Rc3 {[%emt 0:03:47]} (17. e3 {seems wilder.} Rb8 18. Rc7 Qe5 19. Qc3) 17... Nc5 {[%emt 0:15:30]} 18. Qc2 {[%emt 0:13:37]} Ne6 {[%emt 0:00:32]} 19. Nxe4 {[%emt 0:05:38]} Nxf4 {[%emt 0:03:49]} 20. gxf4 {[%emt 0:00:24]} Bf5 {[%emt 0:05:02]} 21. Nxf6+ {[%emt 0:00:25]} Qxf6 {[%emt 0:00:05]} 22. e4 {[%emt 0:00:08]} Bd7 {[%emt 0:00:26]} 23. f5 {[%emt 0:07:52]} Bc6 {[%emt 0:00:15]} 24. Rd1 {[%emt 0:02:16]} Rad8 {[%emt 0:00:50]} 25. Rxd8 {[%emt 0:00:38]} Rxd8 {[%emt 0:00:08]} 26. Rd3 {[%emt 0:00:22]} Rxd3 {[%emt 0:02:24]} 27. Qxd3 $11 {[%emt 0:00:04][%mdl 4096] Endgame KQB-KQB} g6 {[%emt 0:00:20]} 28. fxg6 {[%emt 0:01:24]} hxg6 {[%emt 0:00:06]} 29. Qd2 {[%emt 0:02:21]} Qe5 {[%emt 0:01:44]} 30. a3 {[%emt 0:04:50]} g5 {[%emt 0:01:00]} (30... Bxe4 $2 31. Qe3 $18) ({Black should play} 30... Kh7 $11) 31. f3 $14 {[%emt 0:00:19]} a5 {[%emt 0:01:02]} 32. Bh3 {[%emt 0:00:26]} f6 {[%emt 0:00:52]} 33. Kg2 {[%emt 0:00:54]} Kf8 {[%emt 0:00:41]} 34. Bf5 {[%emt 0:01:34]} Ke7 {[%emt 0:00:37]} 35. Kh3 {[%emt 0:05:24]} Qc5 {[%emt 0:00:33]} 36. Kg2 {[%emt 0:04:19]} Qe5 $1 {[%emt 0:00:29]} 37. Kh3 {[%emt 0:01:30]} Qc5 $1 {[%emt 0:00:04]} 38. Kg2 {[%emt 0:01:16]} Qe5 $1 {[%emt 0:00:04]} 39. Kh3 {[%emt 0:06:01]} Qc5 $1 {[%emt 0:00:05]} 40. Kg2 {[%emt 0:00:53] Weighted Error Value: White=0.11 (very precise) /Black=0.05 (flawless)} (40. Kg3 $14) 1/2-1/2

[Event "44th Chess Olympiad Open 2022"]
[Site "Chennai"]
[Date "2022.08.05"]
[Round "7.10"]
[White "McShane, Luke J"]
[Black "Fier, Alexandr"]
[Result "0-1"]
[ECO "B31"]
[WhiteElo "2649"]
[BlackElo "2567"]
[Annotator "TA"]
[PlyCount "100"]
[EventDate "2022.07.29"]
[EventType "team-tourn"]
[EventCountry "IND"]
[SourceTitle "playchess.com"]
[Source "ChessBase"]
[SourceQuality "1"]
[WhiteTeam "England"]
[BlackTeam "Brazil"]
[WhiteTeamCountry "ENG"]
[BlackTeamCountry "BRA"]
[TimeControl "40/5400+30:1800+30"]

{[%evp 9,100,7,18,13,12,1,17,2,13,0,2,0,19,12,47,51,54,48,62,54,35,15,14,16,11,0,35,27,31,25,15,23,36,42,44,44,44,0,0,0,0,-20,-36,-24,-20,-29,-26,-33,-6,-1,-11,-5,0,-64,-15,-81,-54,-109,-101,-136,-135,-145,-24,-140,-120,-125,-119,-119,-92,-118,-118,-120,-122,-122,-122,-137,-130,-904,-837,-29973,-29974,-29973,-29974,-29974,-29975,-29974,-29975,-29976,-29976,-29975,-29973,-29971,-29972]} 1. e4 {[%emt 0:01:19]} c5 {[%emt 0:00:06]} 2. Nf3 {[%emt 0:00:09]} Nc6 {[%emt 0:00:03]} 3. Bb5 {[%emt 0:00:09]} g6 {[%emt 0:00:04]} 4. Bxc6 {[%emt 0:00:11]} bxc6 {[%emt 0:00:03]} 5. d4 {[%emt 0:00:12]} Bg7 {[%emt 0:00:21]} 6. dxc5 {[%emt 0:00:17] B31: Sicilian: 2...Nc6 3 Bb5 g6.} Qa5+ {[%emt 0:00:04]} 7. Nbd2 {[%emt 0:00:11]} Qxc5 {[%emt 0:00:02]} 8. O-O {[%emt 0:00:51] The position is equal.} Nf6 {[%emt 0:00:04] [#]} 9. Re1 $146 {[%emt 0:12:52]} ({Predecessor:} 9. Nb3 Qd6 10. e5 Qxd1 11. Rxd1 Nd5 12. c4 Nc7 13. Be3 f6 14. exf6 Bxf6 15. Rd2 {½-½ (54) Moussard,J (2651)-Aryan,C (2609) Sharjah 2022}) 9... Ng4 {[%emt 0:03:51] Prevents e5.} 10. Qe2 {[%emt 0:01:01]} Qxc2 {[%emt 0:08:07]} 11. e5 $1 {[%emt 0:00:42] Prevents d6.} h5 {[%emt 0:09:07]} 12. h3 {[%emt 0:06:54][%mdl 1024] White has compensation.} Nh6 {[%emt 0:00:05]} 13. Nd4 $1 {[%emt 0:00:06]} Qa4 {[%emt 0:06:07]} 14. Qe4 {[%emt 0:02:54]} Rb8 {[%emt 0:07:21]} 15. Ne6 {[%emt 0:16:54]} Qxe4 {[%emt 0:00:22]} 16. Nxg7+ {[%emt 0:00:04] Pair of Knights!} Kf8 {[%emt 0:00:05]} 17. Ne6+ {[%emt 0:00:30]} dxe6 {[%emt 0:16:18]} 18. Nxe4 {[%emt 0:01:30]} Nf5 {[%emt 0:02:24]} 19. b3 {[%emt 0:06:20]} Rb5 {[%emt 0:05:44]} 20. Ba3 {[%emt 0:09:23]} Rd5 {[%emt 0:00:03]} 21. Rac1 {[%emt 0:04:11]} Ra5 {[%emt 0:03:20]} 22. Bc5 {[%emt 0:01:14]} ({Of course not} 22. Rxc6 Bb7 23. Rc7 Bxe4 $11) 22... Rxa2 {[%emt 0:00:18]} 23. g4 {[%emt 0:03:07]} hxg4 {[%emt 0:04:57]} 24. hxg4 {[%emt 0:00:06]} Nh4 {[%emt 0:00:02] And now ...Nf3+ would win.} 25. Re3 {[%emt 0:15:33] Prevents Nf3+.} g5 {[%emt 0:05:12]} 26. Rd1 {[%emt 0:01:20]} Ng6 $1 {[%emt 0:01:08]} 27. Nxg5 {[%emt 0:03:58]} Kg7 {[%emt 0:04:37]} 28. Rf3 $1 {[%emt 0:02:27]} Nxe5 {[%emt 0:00:30]} 29. Bd4 $132 {[%emt 0:00:09][%mdl 2048] Black must now prevent Rxf7+. White is not holding back} f6 {[%emt 0:00:02]} 30. Bxe5 {[%emt 0:00:11]} fxe5 {[%emt 0:00:02]} 31. Ne4 {[%emt 0:05:35]} ({White should play} 31. Kg2 $11) 31... Re2 {[%emt 0:03:36]} (31... c5 $15 32. Kg2 Rc2) 32. Ng3 {[%emt 0:00:45]} (32. Re3 $1 $11 {remains equal.} Rxe3 33. fxe3) 32... Rc2 {[%emt 0:00:43]} 33. Re1 {[%emt 0:00:58]} (33. Ra1 $15) 33... Rh4 $17 {[%emt 0:01:54]} 34. Rxe5 {[%emt 0:02:28]} Rxg4 {[%emt 0:00:10]} 35. Kh2 {[%emt 0:02:41]} Rh4+ {[%emt 0:02:41]} ({Black should try} 35... c5 $17 {...Rh4+ is the strong threat.} 36. Nh5+ Kg8) 36. Kg1 {[%emt 0:00:41]} (36. Kg2 $11 {was the only way to keep the balance.} Rg4 37. Kh3) 36... Rc1+ {[%emt 0:00:19]} 37. Kg2 {[%emt 0:00:04] [#] Strongly threatening Rg5+.} Rg4 {[%emt 0:06:04] Inhibits Rg5+.} 38. Rfe3 {[%emt 0:00:56]} c5 {[%emt 0:00:22]} 39. Kh3 {[%emt 0:00:31]} Rg6 {[%emt 0:00:04]} 40. Re1 {[%emt 0:00:31]} Rxe1 {[%emt 0:06:37]} 41. Rxe1 {[%emt 0:30:03][%mdl 4096] Endgame KRB-KRN} Rh6+ {[%emt 0:31:45]} 42. Kg2 {[%emt 0:00:00]} Rh4 {[%emt 0:00:00]} 43. Ne4 $2 {[%emt 0:00:00][%mdl 8192] [#] Now White is beyond hope.} (43. f3 $17) 43... Rxe4 $1 $19 {[%emt 0:00:00]} 44. Rxe4 {[%emt 0:00:00] KR-KB} (44. Rc1 Bb7) 44... Bb7 {[%emt 0:00:00] Black mates.} 45. Kf3 {[%emt 0:00:00]} Kf7 {[%emt 0:00:00]} 46. Kf4 {[%emt 0:00:00]} Bxe4 {[%emt 0:00:00]} 47. Kxe4 {[%emt 0:00:00]} Ke8 {[%emt 0:00:00]} 48. Ke5 {[%emt 0:00:00]} Kd7 {[%emt 0:00:00]} 49. f3 {[%emt 0:00:00]} a6 {[%emt 0:00:00][%cal Ba7a6,Ba6a5][%mdl 32]} 50. f4 {[%emt 0:00:00]} a5 {[%emt 0:00:00] Weighted Error Value: White=0.42/Black=0.11 (very precise)} 0-1

[Event "44th Chess Olympiad Open 2022"]
[Site "Chennai"]
[Date "2022.08.05"]
[Round "7.10"]
[White "Supi, Luis Paulo"]
[Black "Adams, Michael"]
[Result "1/2-1/2"]
[ECO "C50"]
[WhiteElo "2603"]
[BlackElo "2696"]
[Annotator "TA"]
[PlyCount "63"]
[EventDate "2022.07.29"]
[EventType "team-tourn"]
[EventCountry "IND"]
[SourceTitle "playchess.com"]
[Source "ChessBase"]
[SourceQuality "1"]
[WhiteTeam "Brazil"]
[BlackTeam "England"]
[WhiteTeamCountry "BRA"]
[BlackTeamCountry "ENG"]
[TimeControl "40/5400+30:1800+30"]

{[%evp 10,63,19,14,16,21,22,21,15,16,23,14,25,21,22,12,15,18,16,13,13,10,19,0,7,0,0,0,0,-14,14,0,6,0,0,0,8,0,7,6,7,0,0,0,0,-9,-10,-20,0,0,0,-28,0,0,0,-12]} 1. e4 {[%emt 0:00:03]} e5 {[%emt 0:00:07]} 2. Nf3 {[%emt 0:00:27]} Nc6 {[%emt 0:00:09]} 3. Bc4 {[%emt 0:00:06]} Bc5 {[%emt 0:00:08]} 4. d3 {[%emt 0:02:20]} Nf6 {[%emt 0:00:12]} 5. Bg5 {[%emt 0:00:12][%cal Bc1g5,Bg5h4,Bh4g3][%mdl 32]} h6 {[%emt 0:03:40]} 6. Bh4 {[%emt 0:00:14]} Be7 {[%emt 0:00:12] C50: Hungarian Defence and Giuoco Pianissimo.} 7. Bg3 {[%emt 0:01:32]} d6 {[%emt 0:00:41]} 8. a4 {[%emt 0:01:47]} O-O {[%emt 0:03:37]} 9. h3 {[%emt 0:00:43]} Kh8 {[%emt 0:04:18]} 10. O-O {[%emt 0:01:37]} Nh7 {[%emt 0:05:48]} 11. Nc3 {[%emt 0:02:36]} f5 {[%emt 0:04:51]} 12. exf5 {[%emt 0:00:39]} Bxf5 {[%emt 0:01:05]} 13. Nd5 {[%emt 0:06:34]} Nf6 {[%emt 0:02:59]} 14. Re1 {[%emt 0:10:31]} Nxd5 {[%emt 0:04:12]} 15. Bxd5 {[%emt 0:03:44]} Bf6 {[%emt 0:00:10] [#]} 16. c3 $146 {[%emt 0:01:00]} ({Predecessor:} 16. a5 a6 17. c3 Rb8 18. Ra4 Ne7 19. Ba2 Bd7 20. Ra3 Bc6 21. d4 e4 22. Nh2 {1-0 (81) Godena,M (2508)-Plenca,J (2487) Le Castella 2018}) 16... a5 {[%emt 0:07:04]} 17. Qd2 {[%emt 0:17:49]} Qd7 {[%emt 0:04:04]} 18. Rac1 {[%emt 0:02:20]} Rae8 {[%emt 0:02:27]} 19. b4 {[%emt 0:01:57]} b6 {[%emt 0:07:55]} (19... Ne7 $5 {[%cal Re7d5]} 20. Bxb7 Qxa4 $11) 20. b5 {[%emt 0:16:44]} Ne7 {[%emt 0:09:33]} 21. Be4 {[%emt 0:01:47]} Bxe4 {[%emt 0:02:54]} 22. Rxe4 {[%emt 0:02:39]} Nf5 {[%emt 0:00:09]} 23. Bh2 {[%emt 0:01:15]} Re7 {[%emt 0:07:32]} 24. Rce1 {[%emt 0:01:55]} Qe8 {[%emt 0:01:35]} 25. Qa2 {[%emt 0:02:57]} Qf7 {[%emt 0:01:08]} 26. Qxf7 {[%emt 0:00:56]} Rexf7 {[%emt 0:00:07]} 27. Rc4 {[%emt 0:04:22]} Kh7 {[%emt 0:03:51]} 28. Re2 {[%emt 0:03:15]} Bd8 {[%emt 0:03:03]} 29. Rce4 {[%emt 0:03:52]} Bf6 {[%emt 0:00:42]} 30. Rc4 {[%emt 0:01:12]} Bd8 {[%emt 0:00:04]} 31. Rce4 {[%emt 0:01:28]} Bf6 {[%emt 0:00:44]} 32. Rc4 {[%emt 0:00:17] A balanced but interesting game.  Weighted Error Value: White=0.04 (flawless) /Black=0.04 (flawless)} 1/2-1/2